[Event "*** Titled Tuesday Blitz"]
[Site "Chess.com"]
[Date "2019.07.02"]
[Round "7"]
[White "StephenDedalus83"]
[Black "wnstop"]
[Result "0-1"]
[WhiteElo "2789"]
[BlackElo "2683"]
[TimeControl "180+2"]
[EndTime "14:30:38 PDT"]
[Termination "wnstop won by resignation"]

1. e4 {[%clk 0:03:01.9]} 1... c5 {[%clk 0:03:01.3]} 2. Nf3 {[%clk 0:03:02.4]}
2... Nc6 {[%clk 0:03:00.8]} 3. d4 {[%clk 0:03:03.7]} 3... cxd4 {[%clk
0:03:02.3]} 4. Nxd4 {[%clk 0:03:05.6]} 4... e5 {[%clk 0:03:03.8]} 5. Nb5 {[%clk
0:03:05.8]} 5... d6 {[%clk 0:03:05.1]} 6. N1c3 {[%clk 0:03:07.2]} 6... a6 {[%clk
0:03:06.3]} 7. Na3 {[%clk 0:03:08.4]} 7... Be7 {[%clk 0:03:07.8]} 8. Nc4 {[%clk
0:03:08.4]} 8... b5 {[%clk 0:03:09.2]} 9. Ne3 {[%clk 0:03:09.5]} 9... Nf6 {[%clk
0:03:10.7]} 10. g3 {[%clk 0:03:10]} 10... O-O {[%clk 0:03:11.6]} 11. Bg2 {[%clk
0:03:10.7]} 11... b4 {[%clk 0:03:08.6]} 12. Ncd5 {[%clk 0:03:11]} 12... Nxd5
{[%clk 0:03:10.1]} 13. Nxd5 {[%clk 0:03:10.1]} 13... Bg5 {[%clk 0:03:11.5]} 14.
O-O {[%clk 0:03:09.4]} 14... Bxc1 {[%clk 0:03:12]} 15. Rxc1 {[%clk 0:03:09.8]}
15... Rb8 {[%clk 0:03:12.2]} 16. Qd2 {[%clk 0:03:05.5]} 16... a5 {[%clk
0:03:09.5]} 17. c3 {[%clk 0:02:49.1]} 17... bxc3 {[%clk 0:03:07]} 18. Rxc3
{[%clk 0:02:47]} 18... Nd4 {[%clk 0:03:03.6]} 19. Ne3 {[%clk 0:02:46.2]} 19...
Be6 {[%clk 0:03:01.9]} 20. b3 {[%clk 0:02:46.3]} 20... a4 {[%clk 0:02:58.6]} 21.
bxa4 {[%clk 0:02:28.4]} 21... Qa5 {[%clk 0:02:59.7]} 22. Qd3 {[%clk 0:01:57.8]}
22... Qxc3 {[%clk 0:02:57.9]} 0-1

[Event "*** Titled Tuesday Blitz"]
[Site "Chess.com"]
[Date "2019.07.02"]
[Round "7"]
[White "Alexander_Moskalenko"]
[Black "FairChess_on_YouTube"]
[Result "1/2-1/2"]
[WhiteElo "2873"]
[BlackElo "3039"]
[TimeControl "180+2"]
[EndTime "14:30:45 PDT"]
[Termination "Game drawn by agreement"]

1. d4 {[%clk 0:03:01.9]} 1... Nf6 {[%clk 0:03:00.6]} 2. c4 {[%clk 0:03:03.8]}
2... e6 {[%clk 0:03:01.7]} 3. Nc3 {[%clk 0:03:04.5]} 3... Bb4 {[%clk 0:03:02]}
4. Qc2 {[%clk 0:03:05.8]} 4... O-O {[%clk 0:03:01.9]} 5. a3 {[%clk 0:03:05.7]}
5... Bxc3+ {[%clk 0:03:02.5]} 6. Qxc3 {[%clk 0:03:07.6]} 6... d5 {[%clk
0:03:03.6]} 7. Nf3 {[%clk 0:02:40.1]} 7... dxc4 {[%clk 0:03:04.3]} 8. Qxc4
{[%clk 0:02:42]} 8... b6 {[%clk 0:03:05.2]} 9. Bg5 {[%clk 0:02:39.1]} 9... Ba6
{[%clk 0:03:04.9]} 10. Qa4 {[%clk 0:02:36.1]} 10... Qd7 {[%clk 0:03:05.5]} 11.
Qxd7 {[%clk 0:02:27.7]} 11... Nbxd7 {[%clk 0:03:06.2]} 12. Bxf6 {[%clk
0:02:29.1]} 12... Nxf6 {[%clk 0:03:07.1]} 13. e3 {[%clk 0:02:31]} 13... Bb7
{[%clk 0:03:08.3]} 14. Rc1 {[%clk 0:02:22.4]} 14... Rac8 {[%clk 0:03:02.2]} 15.
Be2 {[%clk 0:02:19.8]} 15... c5 {[%clk 0:02:43.4]} 16. dxc5 {[%clk 0:02:20.5]}
16... Ne4 {[%clk 0:02:30.6]} 17. O-O {[%clk 0:02:08.1]} 17... Nxc5 {[%clk
0:02:26]} 18. Nd4 {[%clk 0:02:09.3]} 1/2-1/2

[Event "*** Titled Tuesday Blitz"]
[Site "Chess.com"]
[Date "2019.07.02"]
[Round "7"]
[White "darsen_sanzhaev"]
[Black "shnitez"]
[Result "0-1"]
[WhiteElo "2619"]
[BlackElo "2590"]
[TimeControl "180+2"]
[EndTime "14:31:06 PDT"]
[Termination "shnitez won by resignation"]

1. d4 {[%clk 0:03:01.9]} 1... f5 {[%clk 0:02:59.5]} 2. e4 {[%clk 0:02:58.4]}
2... fxe4 {[%clk 0:03:00.4]} 3. Nc3 {[%clk 0:02:59.8]} 3... Nf6 {[%clk
0:03:01.8]} 4. Bg5 {[%clk 0:02:59.5]} 4... g6 {[%clk 0:03:03.1]} 5. f3 {[%clk
0:02:53.5]} 5... d5 {[%clk 0:03:00.8]} 6. fxe4 {[%clk 0:02:51.6]} 6... Nxe4
{[%clk 0:02:56.4]} 7. Nxe4 {[%clk 0:02:51.2]} 7... dxe4 {[%clk 0:02:58.3]} 8.
Bc4 {[%clk 0:02:52.2]} 8... Nc6 {[%clk 0:02:57.1]} 9. Ne2 {[%clk 0:02:52.5]}
9... Na5 {[%clk 0:02:58.2]} 10. Bb3 {[%clk 0:02:33.8]} 10... Nxb3 {[%clk
0:02:57.2]} 11. axb3 {[%clk 0:02:35.7]} 11... Bg7 {[%clk 0:02:30.6]} 12. O-O
{[%clk 0:02:33.2]} 12... Bg4 {[%clk 0:02:24.8]} 13. c3 {[%clk 0:02:33.1]} 13...
a6 {[%clk 0:02:14]} 14. b4 {[%clk 0:02:29.1]} 14... Qd5 {[%clk 0:02:13.8]} 15.
Ra5 {[%clk 0:02:28]} 15... Qc4 {[%clk 0:02:02.6]} 16. Re5 {[%clk 0:02:24]} 16...
Bxe5 {[%clk 0:01:54.5]} 0-1

[Event "*** Titled Tuesday Blitz"]
[Site "Chess.com"]
[Date "2019.07.02"]
[Round "7"]
[White "benhal"]
[Black "Andrei_Belozerov"]
[Result "1-0"]
[WhiteElo "2407"]
[BlackElo "2531"]
[TimeControl "180+2"]
[EndTime "14:31:36 PDT"]
[Termination "benhal won by resignation"]

1. d4 {[%clk 0:03:01.9]} 1... d5 {[%clk 0:03:00.6]} 2. Bf4 {[%clk 0:02:57.8]}
2... Nf6 {[%clk 0:03:00.7]} 3. e3 {[%clk 0:02:56.3]} 3... c5 {[%clk 0:03:02]} 4.
dxc5 {[%clk 0:02:56.3]} 4... e6 {[%clk 0:03:01.2]} 5. b4 {[%clk 0:02:48.6]} 5...
a5 {[%clk 0:03:01.8]} 6. c3 {[%clk 0:02:49.4]} 6... axb4 {[%clk 0:03:02.6]} 7.
cxb4 {[%clk 0:02:51.3]} 7... b6 {[%clk 0:03:03.2]} 8. Bxb8 {[%clk 0:02:51.6]}
8... Rxb8 {[%clk 0:03:03.4]} 9. Bb5+ {[%clk 0:02:52.4]} 9... Nd7 {[%clk
0:02:43.2]} 10. c6 {[%clk 0:02:51.9]} 10... Bxb4+ {[%clk 0:02:44.4]} 11. Kf1
{[%clk 0:02:51.8]} 11... O-O {[%clk 0:02:42.5]} 12. cxd7 {[%clk 0:02:51.1]}
12... Bxd7 {[%clk 0:02:43.8]} 13. Bxd7 {[%clk 0:02:52]} 13... Qxd7 {[%clk
0:02:44.8]} 14. Nf3 {[%clk 0:02:50.7]} 14... Rfc8 {[%clk 0:02:46.1]} 15. g3
{[%clk 0:02:46.3]} 15... Ra8 {[%clk 0:02:37.5]} 16. Kg2 {[%clk 0:02:45.6]} 16...
Be7 {[%clk 0:02:38.4]} 17. Nbd2 {[%clk 0:02:42.3]} 17... Bf6 {[%clk 0:02:39.2]}
18. Rb1 {[%clk 0:02:42.4]} 18... Rxa2 {[%clk 0:02:38.7]} 19. Rxb6 {[%clk
0:02:42.5]} 19... h5 {[%clk 0:02:34.4]} 20. Qb3 {[%clk 0:02:39.2]} 20... Rcc2
{[%clk 0:02:31.8]} 21. Rb8+ {[%clk 0:02:37.9]} 21... Kh7 {[%clk 0:02:32.2]} 22.
Qd3+ {[%clk 0:02:37.5]} 22... g6 {[%clk 0:02:32.5]} 23. h4 {[%clk 0:02:36.6]}
23... Qa4 {[%clk 0:02:20.3]} 24. Rb7 {[%clk 0:02:27.1]} 24... Kg7 {[%clk
0:02:19.1]} 25. Rhb1 {[%clk 0:02:24.5]} 25... Rc3 {[%clk 0:02:09.4]} 26. Rxf7+
{[%clk 0:02:21.8]} 26... Kxf7 {[%clk 0:02:09.7]} 27. Rb7+ {[%clk 0:02:22.1]}
27... Kf8 {[%clk 0:02:09.6]} 28. Qxg6 {[%clk 0:02:21.2]} 1-0

[Event "*** Titled Tuesday Blitz"]
[Site "Chess.com"]
[Date "2019.07.02"]
[Round "7"]
[White "TheCavemanChesss"]
[Black "DACF2905"]
[Result "1-0"]
[WhiteElo "2426"]
[BlackElo "2227"]
[TimeControl "180+2"]
[EndTime "14:31:39 PDT"]
[Termination "TheCavemanChesss won by resignation"]

1. e4 {[%clk 0:03:01.9]} 1... c5 {[%clk 0:03:00.1]} 2. Nf3 {[%clk 0:03:02.6]}
2... e6 {[%clk 0:03:00.2]} 3. d4 {[%clk 0:03:03.8]} 3... cxd4 {[%clk 0:03:01.8]}
4. Nxd4 {[%clk 0:03:05.7]} 4... a6 {[%clk 0:03:02.8]} 5. c4 {[%clk 0:03:06]}
5... Qc7 {[%clk 0:03:03.9]} 6. Nc3 {[%clk 0:03:07.2]} 6... Nf6 {[%clk
0:03:04.7]} 7. a3 {[%clk 0:03:08.5]} 7... Bc5 {[%clk 0:03:03.2]} 8. Be3 {[%clk
0:03:07.2]} 8... b6 {[%clk 0:03:02.8]} 9. f3 {[%clk 0:03:05.7]} 9... Bb7 {[%clk
0:03:03.7]} 10. b4 {[%clk 0:03:04.3]} 10... Be7 {[%clk 0:03:03.8]} 11. Rc1
{[%clk 0:03:04.5]} 11... Nc6 {[%clk 0:03:04.6]} 12. Be2 {[%clk 0:02:59.9]} 12...
Rc8 {[%clk 0:03:04.3]} 13. O-O {[%clk 0:03:00.5]} 13... O-O {[%clk 0:03:04.2]}
14. Nd5 {[%clk 0:02:52.7]} 14... exd5 {[%clk 0:03:03.4]} 15. cxd5 {[%clk
0:02:54.6]} 15... Qb8 {[%clk 0:03:04.1]} 16. dxc6 {[%clk 0:02:55.4]} 16... dxc6
{[%clk 0:03:04.4]} 17. Nf5 {[%clk 0:02:56.1]} 17... Bd8 {[%clk 0:03:03.4]} 18.
Qd2 {[%clk 0:02:47.2]} 18... g6 {[%clk 0:02:44.2]} 19. Nd6 {[%clk 0:02:29.4]}
19... Nd5 {[%clk 0:02:29.3]} 20. Nxc8 {[%clk 0:02:23.7]} 20... Nxe3 {[%clk
0:02:29.6]} 21. Qxe3 {[%clk 0:02:23.3]} 21... Qxc8 {[%clk 0:02:26]} 22. Rfd1
{[%clk 0:02:21]} 22... Kg7 {[%clk 0:02:21.7]} 23. Qd4+ {[%clk 0:02:16.6]} 23...
Kg8 {[%clk 0:02:20.1]} 24. Qd7 {[%clk 0:02:16.8]} 24... Qb8 {[%clk 0:02:17.9]}
25. g3 {[%clk 0:02:11]} 25... c5 {[%clk 0:02:11.7]} 26. bxc5 {[%clk 0:02:09.6]}
26... bxc5 {[%clk 0:02:12.8]} 27. Rb1 {[%clk 0:02:10.5]} 1-0

[Event "*** Titled Tuesday Blitz"]
[Site "Chess.com"]
[Date "2019.07.02"]
[Round "7"]
[White "Siniauski"]
[Black "zurzan"]
[Result "1-0"]
[WhiteElo "2421"]
[BlackElo "1930"]
[TimeControl "180+2"]
[EndTime "14:32:09 PDT"]
[Termination "Siniauski won by checkmate"]

1. e4 {[%clk 0:03:01.9]} 1... Nf6 {[%clk 0:02:58.8]} 2. e5 {[%clk 0:03:02.1]}
2... Nd5 {[%clk 0:02:58.2]} 3. c4 {[%clk 0:03:03.2]} 3... Nb6 {[%clk 0:02:57.5]}
4. d4 {[%clk 0:03:04.8]} 4... d6 {[%clk 0:02:56.9]} 5. f4 {[%clk 0:03:05.5]}
5... dxe5 {[%clk 0:02:55.2]} 6. fxe5 {[%clk 0:03:07.4]} 6... Nc6 {[%clk
0:02:53.9]} 7. Be3 {[%clk 0:03:08.5]} 7... Bf5 {[%clk 0:02:50.1]} 8. Nc3 {[%clk
0:03:08.9]} 8... e6 {[%clk 0:02:46.7]} 9. Nf3 {[%clk 0:03:09.5]} 9... Bb4 {[%clk
0:02:45.6]} 10. Be2 {[%clk 0:02:58.7]} 10... O-O {[%clk 0:02:42.1]} 11. O-O
{[%clk 0:02:58.6]} 11... a5 {[%clk 0:02:39.6]} 12. a3 {[%clk 0:02:53.8]} 12...
Bxc3 {[%clk 0:02:38.7]} 13. bxc3 {[%clk 0:02:55.7]} 13... a4 {[%clk 0:02:36.9]}
14. Bd3 {[%clk 0:02:50]} 14... Bg6 {[%clk 0:02:34.8]} 15. Bxg6 {[%clk
0:02:48.7]} 15... hxg6 {[%clk 0:02:34.6]} 16. Qd3 {[%clk 0:02:46.9]} 16... Nd7
{[%clk 0:02:17.6]} 17. Qe4 {[%clk 0:02:35.9]} 17... Re8 {[%clk 0:02:13.3]} 18.
Ng5 {[%clk 0:02:35]} 18... Re7 {[%clk 0:02:03.6]} 19. Qh4 {[%clk 0:02:31]} 19...
Nf8 {[%clk 0:02:02.7]} 20. Rf3 {[%clk 0:02:30.8]} 20... f6 {[%clk 0:01:42]} 21.
Rh3 {[%clk 0:02:14]} 21... fxg5 {[%clk 0:01:40.3]} 22. Bxg5 {[%clk 0:02:11.4]}
22... Kf7 {[%clk 0:01:32]} 23. Rf1+ {[%clk 0:02:10.3]} 23... Ke8 {[%clk
0:01:31.1]} 24. Rxf8+ {[%clk 0:02:09.1]} 24... Kxf8 {[%clk 0:01:28]} 25. Qh8+
{[%clk 0:02:09.9]} 25... Kf7 {[%clk 0:01:25.6]} 26. Rf3# {[%clk 0:02:11.5]} 1-0

[Event "*** Titled Tuesday Blitz"]
[Site "Chess.com"]
[Date "2019.07.02"]
[Round "7"]
[White "PaulfromSPb"]
[Black "mbojan"]
[Result "0-1"]
[WhiteElo "2621"]
[BlackElo "2604"]
[TimeControl "180+2"]
[EndTime "14:32:18 PDT"]
[Termination "mbojan won by resignation"]

1. d4 {[%clk 0:03:01.9]} 1... g6 {[%clk 0:03:01.9]} 2. e4 {[%clk 0:03:02.5]}
2... Bg7 {[%clk 0:03:03.4]} 3. Nc3 {[%clk 0:03:03.7]} 3... d6 {[%clk 0:03:04.9]}
4. f4 {[%clk 0:03:04.7]} 4... a6 {[%clk 0:03:06.4]} 5. Be3 {[%clk 0:03:04.4]}
5... b5 {[%clk 0:03:06.8]} 6. a3 {[%clk 0:03:00.4]} 6... Nd7 {[%clk 0:03:07.7]}
7. Nf3 {[%clk 0:03:00.4]} 7... Bb7 {[%clk 0:03:08.1]} 8. e5 {[%clk 0:02:52.4]}
8... Nb6 {[%clk 0:03:08.9]} 9. Bd3 {[%clk 0:02:51.1]} 9... Nh6 {[%clk
0:03:08.6]} 10. O-O {[%clk 0:02:49.5]} 10... O-O {[%clk 0:03:09.3]} 11. h3
{[%clk 0:02:46.6]} 11... f6 {[%clk 0:03:08]} 12. exf6 {[%clk 0:02:25.9]} 12...
exf6 {[%clk 0:03:09.9]} 13. Bf2 {[%clk 0:02:26.3]} 13... Nd5 {[%clk 0:03:04.3]}
14. Qd2 {[%clk 0:02:25.8]} 14... Qd7 {[%clk 0:02:55.7]} 15. Be4 {[%clk
0:02:23.8]} 15... Qf7 {[%clk 0:02:38.3]} 16. Rae1 {[%clk 0:02:19.1]} 16... Rae8
{[%clk 0:02:38.4]} 17. Kh2 {[%clk 0:01:56.5]} 17... Kh8 {[%clk 0:02:37.7]} 18.
Re2 {[%clk 0:01:46.7]} 18... Nxc3 {[%clk 0:02:31.5]} 19. Bxb7 {[%clk 0:01:43.6]}
19... Nxe2 {[%clk 0:02:30.5]} 20. Bc6 {[%clk 0:01:44.1]} 20... Re7 {[%clk
0:02:17.9]} 21. d5 {[%clk 0:01:42]} 21... g5 {[%clk 0:01:58.2]} 22. g3 {[%clk
0:01:31.8]} 22... gxf4 {[%clk 0:01:56.4]} 23. gxf4 {[%clk 0:01:32.5]} 23... Qh5
{[%clk 0:01:56.2]} 24. Be3 {[%clk 0:01:30.1]} 24... Rxe3 {[%clk 0:01:54.6]} 25.
Qxe3 {[%clk 0:01:30.3]} 25... Ng4+ {[%clk 0:01:54.7]} 0-1

[Event "*** Titled Tuesday Blitz"]
[Site "Chess.com"]
[Date "2019.07.02"]
[Round "7"]
[White "vanea_03"]
[Black "josiwales"]
[Result "1-0"]
[WhiteElo "2660"]
[BlackElo "2475"]
[TimeControl "180+2"]
[EndTime "14:32:43 PDT"]
[Termination "vanea_03 won by resignation"]

1. Nf3 {[%clk 0:03:01.9]} 1... d5 {[%clk 0:03:00.2]} 2. c4 {[%clk 0:02:59.1]}
2... c6 {[%clk 0:02:59.3]} 3. g3 {[%clk 0:02:58.8]} 3... Nf6 {[%clk 0:03:00.2]}
4. Bg2 {[%clk 0:02:59.8]} 4... Bg4 {[%clk 0:03:01.1]} 5. Ne5 {[%clk 0:03:00]}
5... Bf5 {[%clk 0:03:01.7]} 6. cxd5 {[%clk 0:02:55.7]} 6... cxd5 {[%clk
0:03:03]} 7. Nc3 {[%clk 0:02:57.1]} 7... e6 {[%clk 0:03:02.8]} 8. g4 {[%clk
0:02:51.7]} 8... Bg6 {[%clk 0:03:01.1]} 9. Qa4+ {[%clk 0:02:49.5]} 9... Nfd7
{[%clk 0:03:01.2]} 10. h4 {[%clk 0:02:46.8]} 10... h5 {[%clk 0:03:01.7]} 11.
Nxg6 {[%clk 0:02:46.9]} 11... fxg6 {[%clk 0:03:02.7]} 12. Qc2 {[%clk 0:02:17.9]}
12... Kf7 {[%clk 0:02:58.9]} 13. gxh5 {[%clk 0:02:11.4]} 13... gxh5 {[%clk
0:02:59.2]} 14. d4 {[%clk 0:02:05]} 14... Nc6 {[%clk 0:02:59.7]} 15. e3 {[%clk
0:02:05.7]} 15... Nf6 {[%clk 0:03:00.2]} 16. Qe2 {[%clk 0:01:57]} 16... Rc8
{[%clk 0:03:01.1]} 17. Bd2 {[%clk 0:01:56.4]} 17... Bb4 {[%clk 0:03:01.8]} 18.
a3 {[%clk 0:01:55.8]} 18... Bxc3 {[%clk 0:03:02.8]} 19. Bxc3 {[%clk 0:01:57.4]}
19... Rf8 {[%clk 0:03:04.2]} 20. Bf3 {[%clk 0:01:56.2]} 20... Rh8 {[%clk
0:03:01.7]} 21. Rg1 {[%clk 0:01:55.6]} 21... Qd6 {[%clk 0:03:02.8]} 22. Kd2
{[%clk 0:01:54]} 22... e5 {[%clk 0:03:02.3]} 23. dxe5 {[%clk 0:01:42.3]} 23...
Nxe5 {[%clk 0:03:03.2]} 24. Ke1 {[%clk 0:01:32]} 24... Rc4 {[%clk 0:02:50.5]}
25. Rg5 {[%clk 0:01:27.6]} 25... Nxf3+ {[%clk 0:02:45.4]} 26. Qxf3 {[%clk
0:01:29.5]} 26... Rxh4 {[%clk 0:02:46.3]} 27. Rd1 {[%clk 0:01:24.8]} 27... Qh2
{[%clk 0:02:28.5]} 28. Ke2 {[%clk 0:01:18.5]} 28... Rh3 {[%clk 0:02:12.3]} 29.
Qf5 {[%clk 0:01:12.7]} 29... Re8 {[%clk 0:02:13]} 30. Rxg7+ {[%clk 0:01:08.6]}
1-0

[Event "*** Titled Tuesday Blitz"]
[Site "Chess.com"]
[Date "2019.07.02"]
[Round "7"]
[White "OglazaOskar2005"]
[Black "ruzomberok"]
[Result "1-0"]
[WhiteElo "2277"]
[BlackElo "2422"]
[TimeControl "180+2"]
[EndTime "14:32:51 PDT"]
[Termination "OglazaOskar2005 won by resignation"]

1. e4 {[%clk 0:03:01.9]} 1... c5 {[%clk 0:02:58.8]} 2. Nf3 {[%clk 0:03:01.2]}
2... d6 {[%clk 0:03:00.4]} 3. d4 {[%clk 0:03:00.9]} 3... cxd4 {[%clk 0:03:02.3]}
4. Nxd4 {[%clk 0:03:02.4]} 4... Nf6 {[%clk 0:03:03.9]} 5. Nc3 {[%clk 0:03:02.7]}
5... Nc6 {[%clk 0:03:05.5]} 6. Bg5 {[%clk 0:03:02.2]} 6... e6 {[%clk 0:03:06.7]}
7. Qd2 {[%clk 0:02:47.8]} 7... a6 {[%clk 0:03:06.2]} 8. O-O-O {[%clk 0:02:48.5]}
8... Bd7 {[%clk 0:03:02.8]} 9. Nxc6 {[%clk 0:02:39.4]} 9... Bxc6 {[%clk
0:02:55.8]} 10. f3 {[%clk 0:02:39.8]} 10... b5 {[%clk 0:02:47.2]} 11. Ne2 {[%clk
0:02:37.3]} 11... Be7 {[%clk 0:02:34.2]} 12. Be3 {[%clk 0:02:36.8]} 12... O-O
{[%clk 0:02:23.8]} 13. Nd4 {[%clk 0:02:31]} 13... Bd7 {[%clk 0:02:19.1]} 14. g4
{[%clk 0:02:28.6]} 14... Qc7 {[%clk 0:02:16.4]} 15. h4 {[%clk 0:02:25.5]} 15...
b4 {[%clk 0:02:04.8]} 16. h5 {[%clk 0:02:24.3]} 16... e5 {[%clk 0:01:56.6]} 17.
Nf5 {[%clk 0:02:23.5]} 17... Bxf5 {[%clk 0:01:52.9]} 18. gxf5 {[%clk 0:02:23.5]}
18... a5 {[%clk 0:01:47.4]} 19. Rg1 {[%clk 0:02:20.7]} 19... a4 {[%clk
0:01:42.8]} 20. Bh6 {[%clk 0:02:08.9]} 20... g6 {[%clk 0:01:17.9]} 21. hxg6
{[%clk 0:01:56]} 21... fxg6 {[%clk 0:01:14.4]} 22. fxg6 {[%clk 0:01:51.3]} 22...
Nh5 {[%clk 0:01:14.3]} 23. Bxf8 {[%clk 0:01:46.8]} 23... Rxf8 {[%clk 0:01:11.3]}
24. Qh6 {[%clk 0:01:46.4]} 1-0

[Event "*** Titled Tuesday Blitz"]
[Site "Chess.com"]
[Date "2019.07.02"]
[Round "7"]
[White "Grischuk"]
[Black "Nightlord1"]
[Result "1-0"]
[WhiteElo "3077"]
[BlackElo "2161"]
[TimeControl "180+2"]
[EndTime "14:33:10 PDT"]
[Termination "Grischuk won by resignation"]

1. e4 {[%clk 0:03:01.9]} 1... e5 {[%clk 0:03:00.9]} 2. Nf3 {[%clk 0:03:03.1]}
2... d5 {[%clk 0:03:00.9]} 3. Nxe5 {[%clk 0:03:00.8]} 3... dxe4 {[%clk
0:03:01.1]} 4. d4 {[%clk 0:02:58.8]} 4... Bd6 {[%clk 0:02:59.1]} 5. Nc4 {[%clk
0:02:37.5]} 5... Nf6 {[%clk 0:02:57.1]} 6. Bg5 {[%clk 0:02:32.3]} 6... O-O
{[%clk 0:02:55.5]} 7. Be2 {[%clk 0:02:31.8]} 7... Nc6 {[%clk 0:02:55.9]} 8. c3
{[%clk 0:02:31.9]} 8... h6 {[%clk 0:02:50.2]} 9. Bh4 {[%clk 0:02:33.1]} 9... g5
{[%clk 0:02:43.1]} 10. Bg3 {[%clk 0:02:33.9]} 10... Bf4 {[%clk 0:02:40.2]} 11.
Nba3 {[%clk 0:02:30.9]} 11... Nd5 {[%clk 0:02:38.7]} 12. Nc2 {[%clk 0:02:27.4]}
12... f5 {[%clk 0:02:37.1]} 13. a4 {[%clk 0:01:51.4]} 13... Be6 {[%clk
0:02:31.7]} 14. N2e3 {[%clk 0:01:49.4]} 14... Qf6 {[%clk 0:02:10.3]} 15. Qc2
{[%clk 0:01:33.4]} 15... Rad8 {[%clk 0:02:02.9]} 16. h4 {[%clk 0:01:28.4]} 16...
Bxg3 {[%clk 0:01:49.4]} 17. fxg3 {[%clk 0:01:30.3]} 17... Kg7 {[%clk 0:01:24]}
18. hxg5 {[%clk 0:01:27.9]} 18... hxg5 {[%clk 0:01:24.8]} 19. O-O-O {[%clk
0:01:26]} 19... Rh8 {[%clk 0:00:59.8]} 20. Rhf1 {[%clk 0:01:25.9]} 20... Nce7
{[%clk 0:00:57.6]} 21. Ng4 {[%clk 0:01:19.2]} 21... Qg6 {[%clk 0:00:55.9]} 22.
Nge5 {[%clk 0:01:20]} 22... Qh5 {[%clk 0:00:56.7]} 23. Bxh5 {[%clk 0:01:20.2]}
1-0

[Event "*** Titled Tuesday Blitz"]
[Site "Chess.com"]
[Date "2019.07.02"]
[Round "7"]
[White "monalize"]
[Black "volcanoexplorer"]
[Result "0-1"]
[WhiteElo "2322"]
[BlackElo "2525"]
[TimeControl "180+2"]
[EndTime "14:33:16 PDT"]
[Termination "volcanoexplorer won by resignation"]

1. e4 {[%clk 0:03:01.9]} 1... e5 {[%clk 0:03:00.9]} 2. Nf3 {[%clk 0:03:02.2]}
2... Nc6 {[%clk 0:03:02.1]} 3. Bb5 {[%clk 0:03:02.8]} 3... a6 {[%clk 0:03:03.1]}
4. Ba4 {[%clk 0:03:03.8]} 4... Nf6 {[%clk 0:03:04.4]} 5. Bxc6 {[%clk 0:03:04.7]}
5... dxc6 {[%clk 0:03:05.4]} 6. d3 {[%clk 0:03:03.8]} 6... Bd6 {[%clk
0:03:04.9]} 7. O-O {[%clk 0:03:04.3]} 7... O-O {[%clk 0:03:03.7]} 8. Nbd2 {[%clk
0:03:02.8]} 8... Qe7 {[%clk 0:03:01.7]} 9. Nc4 {[%clk 0:03:00.9]} 9... b5 {[%clk
0:03:02.8]} 10. Ne3 {[%clk 0:03:01.1]} 10... Be6 {[%clk 0:03:02.3]} 11. b3
{[%clk 0:02:57]} 11... Nd7 {[%clk 0:03:01.9]} 12. Bb2 {[%clk 0:02:57.6]} 12...
f6 {[%clk 0:03:00.5]} 13. g3 {[%clk 0:02:39.8]} 13... Bh3 {[%clk 0:02:59.5]} 14.
Ng2 {[%clk 0:02:40.1]} 14... f5 {[%clk 0:02:49.3]} 15. exf5 {[%clk 0:02:40.3]}
15... Rxf5 {[%clk 0:02:42.9]} 16. Nd2 {[%clk 0:02:37]} 16... Raf8 {[%clk
0:02:41.2]} 17. Qe2 {[%clk 0:02:35.9]} 17... Nc5 {[%clk 0:02:17.4]} 18. Rae1
{[%clk 0:02:21.9]} 18... Ne6 {[%clk 0:02:16.6]} 19. d4 {[%clk 0:02:10.3]} 19...
Ng5 {[%clk 0:02:04.4]} 20. dxe5 {[%clk 0:02:05.6]} 20... Bb4 {[%clk 0:01:58.6]}
21. f4 {[%clk 0:01:59.1]} 21... Qc5+ {[%clk 0:01:36.9]} 22. Kh1 {[%clk
0:01:53.8]} 22... Qxc2 {[%clk 0:01:33.5]} 23. Nf3 {[%clk 0:01:48.7]} 23... Qxe2
{[%clk 0:01:13.6]} 24. Rxe2 {[%clk 0:01:49.4]} 24... Nxf3 {[%clk 0:01:15]} 25.
Rxf3 {[%clk 0:01:50.4]} 25... Bg4 {[%clk 0:01:16.4]} 26. Rfe3 {[%clk 0:01:47.1]}
26... Bxe2 {[%clk 0:01:16.7]} 27. Rxe2 {[%clk 0:01:48.3]} 27... Rd8 {[%clk
0:01:18.3]} 28. Ne3 {[%clk 0:01:48]} 28... Rff8 {[%clk 0:01:13.5]} 29. f5 {[%clk
0:01:49]} 29... Rd2 {[%clk 0:00:59.6]} 0-1

[Event "*** Titled Tuesday Blitz"]
[Site "Chess.com"]
[Date "2019.07.02"]
[Round "7"]
[White "Colombiano07"]
[Black "resha1988"]
[Result "0-1"]
[WhiteElo "2171"]
[BlackElo "2739"]
[TimeControl "180+2"]
[EndTime "14:33:27 PDT"]
[Termination "resha1988 won by resignation"]

1. e4 {[%clk 0:03:01.2]} 1... c5 {[%clk 0:02:59.1]} 2. b3 {[%clk 0:03:01.9]}
2... Nf6 {[%clk 0:02:49.9]} 3. e5 {[%clk 0:03:02.6]} 3... Nd5 {[%clk 0:02:50.9]}
4. c4 {[%clk 0:03:04.5]} 4... Nc7 {[%clk 0:02:50.7]} 5. Nc3 {[%clk 0:03:06.4]}
5... Nc6 {[%clk 0:02:51.6]} 6. Nf3 {[%clk 0:03:06.7]} 6... g6 {[%clk 0:02:52.2]}
7. Bb2 {[%clk 0:03:03.1]} 7... Bg7 {[%clk 0:02:52.9]} 8. Nd5 {[%clk 0:03:04.8]}
8... O-O {[%clk 0:02:43.6]} 9. Be2 {[%clk 0:02:28.9]} 9... d6 {[%clk 0:02:44.3]}
10. Nxc7 {[%clk 0:02:04.5]} 10... Qxc7 {[%clk 0:02:46.2]} 11. exd6 {[%clk
0:02:06.1]} 11... Qxd6 {[%clk 0:02:46.9]} 12. Bxg7 {[%clk 0:02:07.2]} 12... Kxg7
{[%clk 0:02:48.8]} 13. O-O {[%clk 0:02:08]} 13... Bf5 {[%clk 0:02:44.8]} 14. Qc1
{[%clk 0:02:07.4]} 14... Rad8 {[%clk 0:02:42.8]} 15. Qc3+ {[%clk 0:02:07.4]}
15... Qf6 {[%clk 0:02:43.4]} 16. Rad1 {[%clk 0:02:07]} 16... b6 {[%clk
0:02:40.3]} 17. Rfe1 {[%clk 0:02:04.1]} 17... Bg4 {[%clk 0:02:38.9]} 18. Qe3
{[%clk 0:01:30.3]} 18... Rd7 {[%clk 0:02:30.6]} 19. h3 {[%clk 0:01:28]} 19...
Bxf3 {[%clk 0:02:31.1]} 20. Bxf3 {[%clk 0:01:29]} 20... Nd4 {[%clk 0:02:31.8]}
21. Be4 {[%clk 0:01:23.6]} 21... Rfd8 {[%clk 0:02:32.6]} 22. Rf1 {[%clk
0:01:17.2]} 22... a5 {[%clk 0:02:32.2]} 23. d3 {[%clk 0:01:11.6]} 23... e6
{[%clk 0:02:21.4]} 24. Kh2 {[%clk 0:01:04.1]} 24... Qe5+ {[%clk 0:02:20.9]} 25.
f4 {[%clk 0:01:04.4]} 25... Qc7 {[%clk 0:02:21.9]} 26. Bf3 {[%clk 0:00:33.2]}
26... Nf5 {[%clk 0:02:15.8]} 27. Qe4 {[%clk 0:00:20.4]} 27... Rd4 {[%clk
0:02:14]} 28. Qe5+ {[%clk 0:00:15.6]} 28... Qxe5 {[%clk 0:02:14.2]} 29. fxe5
{[%clk 0:00:17.5]} 29... Ne3 {[%clk 0:02:15.4]} 0-1